fUST/lending_fUST_20250727
["ID","MTS","AMOUNT","RATE_DAILY","PERIOD"]
[375298630,1753619505867,-652.54,0.00024109,2]
[375298631,1753619505877,-460.0,0.00024109,2]
[375298632,1753619505888,-542.11,0.00024109,2]
[375298633,1753619505898,-704.98,0.00024109,2]
[375298634,1753619505907,-841.61,0.00024109,2]
[375298635,1753619505918,-460.0,0.00024109,2]
[375298636,1753619505928,-856.84,0.00024109,2]
[375298637,1753619505940,-460.0,0.00024109,2]
[375298638,1753619505950,-536.66,0.00024109,2]
[375298639,1753619505961,-2625.62,0.00024109,2]
[375298640,1753619505971,-642.17,0.00024109,2]
[375298641,1753619505980,-460.0,0.00024109,2]
[375298642,1753619505989,-708.56,0.00024109,2]
[375298643,1753619505999,-693.53,0.00024109,2]
[375298644,1753619506008,-2552.96,0.00024109,2]
[375298645,1753619506018,-614.5,0.00024109,2]
[375298646,1753619506028,-714.22,0.00024109,2]
[375298647,1753619506037,-460.0,0.00024109,2]
[375298648,1753619506046,-500.96,0.00024109,2]
[375298649,1753619506055,-476.88,0.00024109,2]
[375298650,1753619506064,-774.82,0.00024109,2]
[375298651,1753619506073,-460.0,0.00024109,2]
[375298652,1753619506082,-551.68,0.00024109,2]
[375298653,1753619506091,-2325.49,0.00024109,2]
[375298654,1753619506100,-1372.59,0.00024109,2]
[375298655,1753619506109,-870.88,0.00024109,2]
[375298656,1753619506118,-472.58,0.00024109,2]
[375298657,1753619506127,-815.6,0.00024109,2]
[375298658,1753619506136,-460.0,0.00024109,2]
[375298659,1753619506145,-460.0,0.00024109,2]
[375298660,1753619506154,-172.29839479,0.0002411,2]
[375298661,1753619506163,-514.41,0.00024125,7]
[375298662,1753619506172,-860.0,0.00024136,2]
[375298663,1753619506181,-600.0,0.0002416,2]
[375298664,1753619506189,-500.0,0.00024172,2]
[375298665,1753619506198,-725.78,0.000242,7]
[375298666,1753619506207,-4428.73,0.000242,7]
[375298667,1753619506216,-823.0,0.00024203,2]
[375298668,1753619506225,-2284.11449037,0.0002421,10]
[375298669,1753619506234,-514.41,0.00024225,4]
[375298670,1753619506243,-172.29839479,0.00024247,2]
[375298671,1753619506252,-600.0,0.00024282,2]
[375298672,1753619506261,-600.0,0.00024303,2]
[375298673,1753619506270,-500.0,0.00024314,2]
[375298674,1753619506279,-514.41,0.00024325,3]
[375298675,1753619506288,-172.29839479,0.00024356,2]
[375298676,1753619506297,-2284.11449037,0.00024383,11]
[375298677,1753619506308,-2495.82,0.00024383,2]
[375298678,1753619506317,-425.47,0.00024383,2]
[375298679,1753619506326,-526.11,0.00024383,2]
[375298680,1753619506335,-1544.51,0.00024383,2]
[375298681,1753619506345,-566.0,0.00024383,2]
[375298682,1753619506354,-506.11,0.00024383,2]
[375298683,1753619506363,-460.0,0.00024383,2]
[375298684,1753619506372,-460.0,0.00024383,2]
[375298685,1753619506381,-486.26,0.00024383,2]
[375298686,1753619506391,-460.0,0.00024383,2]
[375298687,1753619506399,-535.76,0.00024383,2]
[375298688,1753619506408,-1844.66,0.00024383,2]
[375298689,1753619506417,-719.78,0.00024383,2]
[375298690,1753619506426,-460.0,0.00024383,2]
[375298691,1753619506435,-2003.47,0.00024383,2]
[375298692,1753619506444,-460.0,0.00024383,2]
[375298693,1753619506453,-748.74,0.00024383,2]
[375298694,1753619506462,-369.3867747,0.00024383,2]
[375298695,1753619506471,-835.18,0.00024383,2]
[375298696,1753619506481,-460.0,0.00024383,2]
[375298697,1753619506490,-1433.49,0.00024383,2]
[375298698,1753619506499,-460.0,0.00024383,2]
[375298699,1753619506507,-514.36,0.00024383,2]
[375298700,1753619506517,-933.19,0.00024383,2]
[375298701,1753619506525,-460.0,0.00024383,2]
[375298702,1753619506535,-556.03,0.00024383,2]
[375298703,1753619506544,-466.19812012,0.00024383,2]
[375298704,1753619506553,-460.0,0.00024383,2]
[375298705,1753619506562,-469.7,0.00024383,2]
[375298706,1753619506571,-452.79079048,0.00024383,2]
[375298707,1753619506580,-537.44,0.00024383,2]
[375298708,1753619506589,-460.0,0.00024383,2]
[375298709,1753619506599,-509.47,0.00024383,2]
[375298710,1753619506607,-895.06,0.00024383,2]
[375298711,1753619506616,-1961.5,0.00024383,2]
[375298712,1753619506625,-460.0,0.00024383,2]
[375298713,1753619506759,-2239.97,0.00024383,2]
[375298714,1753619506771,-494.25,0.00024383,2]
[375298715,1753619506780,-477.09,0.00024383,2]
[375298716,1753619506789,-603.71,0.00024383,2]
[375298717,1753619506798,-534.47,0.00024383,2]
[375298718,1753619506807,-752.16,0.00024383,2]
[375298719,1753619506817,-460.0,0.00024383,2]
[375298720,1753619506827,-4106.11,0.00024383,2]
[375298721,1753619506835,-575.91764872,0.00024383,2]
[375298722,1753619506844,-509.31,0.00024383,2]
[375298723,1753619506853,-1164.72,0.00024383,2]
[375298724,1753619506863,-460.0,0.00024383,2]
[375298725,1753619506872,-460.0,0.00024383,2]
[375298726,1753619506882,-911.34,0.00024383,2]
[375298727,1753619506891,-770.95,0.00024383,2]
[375298728,1753619506900,-802.67,0.00024383,2]
[375298729,1753619506909,-577.86,0.00024383,2]
[375298730,1753619506918,-620.79,0.00024383,2]
[375298731,1753619506927,-460.0,0.00024383,2]
[375298732,1753619506936,-712.03,0.00024383,2]
[375298733,1753619506946,-2515.03,0.00024383,2]
[375298734,1753619506957,-460.0,0.00024383,2]
[375298735,1753619506966,-479.16,0.00024383,2]
[375298736,1753619506975,-3250.61,0.00024383,2]
[375298737,1753619506984,-460.0,0.00024383,2]
[375298738,1753619506993,-813.85,0.00024383,2]
[375298739,1753619507002,-987.49,0.00024383,2]
[375298740,1753619507011,-517.5,0.00024383,2]
[375298741,1753619507021,-460.97,0.00024383,2]
[375298742,1753619507030,-460.0,0.00024383,2]
[375298743,1753619507039,-880.08,0.00024383,2]
[375298744,1753619507048,-1217.33,0.00024383,2]
[375298745,1753619507058,-1796.36,0.00024383,2]
[375298746,1753619507067,-460.0,0.00024383,2]
[375298747,1753619507076,-1416.23,0.00024383,2]
[375298748,1753619507085,-498.6,0.00024383,2]
[375298749,1753619507093,-485.82,0.00024383,2]
[375298750,1753619507102,-2199.13,0.00024383,2]
[375298751,1753619507111,-465.78350436,0.00024383,2]
[375298752,1753619507120,-652.54,0.00024383,2]
[375298753,1753619507129,-704.98,0.00024383,2]
[375298754,1753619507138,-841.61,0.00024383,2]
[375298755,1753619507148,-542.11,0.00024383,2]
[375298756,1753619507157,-460.0,0.00024383,2]
[375298757,1753619507167,-856.84,0.00024383,2]
[375298758,1753619507176,-460.0,0.00024383,2]
[375298759,1753619507186,-536.66,0.00024383,2]
[375298760,1753619507195,-2625.62,0.00024383,2]
[375298761,1753619507205,-642.17,0.00024383,2]
[375298762,1753619507214,-460.0,0.00024383,2]
[375298763,1753619507224,-708.56,0.00024383,2]
[375298764,1753619507233,-693.53,0.00024383,2]
[375298765,1753619507243,-2552.96,0.00024383,2]
[375298766,1753619507253,-614.5,0.00024383,2]
[375298767,1753619507262,-714.22,0.00024383,2]
[375298768,1753619507272,-460.0,0.00024383,2]
[375298769,1753619507281,-500.96,0.00024383,2]
[375298770,1753619507290,-476.88,0.00024383,2]
[375298771,1753619507300,-774.82,0.00024383,2]
[375298772,1753619507312,-460.0,0.00024383,2]
[375298773,1753619507322,-551.68,0.00024383,2]
[375298774,1753619507331,-2325.49,0.00024383,2]
[375298775,1753619507340,-1372.59,0.00024383,2]
[375298776,1753619507351,-870.88,0.00024383,2]
[375298777,1753619507360,-472.58,0.00024383,2]
[375298778,1753619507369,-815.6,0.00024383,2]
[375298779,1753619507379,-460.0,0.00024383,2]
[375298780,1753619507388,-1109.8,0.00024418,6]
[375298781,1753619507397,-514.41,0.00024425,3]
[375298782,1753619507407,-172.29839479,0.00024466,2]
[375298783,1753619507417,-500.0,0.00024486,2]
[375298784,1753619507426,-566716.75925357,0.000245,4]
[375298785,1753619507680,-80471.75581719,0.000245,4]
[375298786,1753619507690,-834.410212,0.000245,7]
[375298787,1753619507700,-834.410212,0.000245,7]
[375298788,1753619507709,-514.41,0.00024525,5]
[375298789,1753619507720,-600.0,0.00024533,2]
[375298790,1753619507730,-2284.11449037,0.00024555,11]
[375298791,1753619507740,-500.0,0.00024559,2]
[375298792,1753619507749,-172.29839479,0.00024575,2]
[375298793,1753619507758,-600.0,0.00024604,2]
[375298794,1753619507768,-500.0,0.00024622,2]
[375298795,1753619507777,-514.42,0.00024625,6]
[375298796,1753619507786,-501.436,0.00024638,2]
[375298797,1753619507795,-2205.782,0.00024638,2]
[375298798,1753619507805,-257279.09561285,0.0002465,2]
[375298799,1753619507814,-668.0,0.00024653,2]
[375298800,1753619507823,-2495.82,0.00024657,2]
[375298801,1753619507833,-1544.51,0.00024657,2]
[375298802,1753619507842,-506.11,0.00024657,2]
[375298803,1753619507851,-460.0,0.00024657,2]
[375298804,1753619507860,-460.0,0.00024657,2]
[375298805,1753619507869,-486.26,0.00024657,2]
[375298806,1753619507879,-247.75587408,0.00024657,2]
[375298807,1753619507889,-535.76,0.00024657,2]
[375298808,1753619507898,-1844.66,0.00024657,2]
[375298809,1753619507907,-719.78,0.00024657,2]
[375298810,1753619507917,-460.0,0.00024657,2]
[375298811,1753619507926,-2003.47,0.00024657,2]
[375298812,1753619507936,-183.19,0.00024657,2]
[375298813,1753619507945,-748.74,0.00024657,2]
[375298814,1753619507954,-835.18,0.00024657,2]
[375298815,1753619507964,-460.0,0.00024657,2]
[375298816,1753619507975,-1433.49,0.00024657,2]
[375298817,1753619507984,-460.0,0.00024657,2]
[375298818,1753619507993,-514.36,0.00024657,2]
[375298819,1753619508002,-933.19,0.00024657,2]
[375298820,1753619508012,-460.0,0.00024657,2]
[375298821,1753619508021,-556.03,0.00024657,2]
[375298822,1753619508031,-460.0,0.00024657,2]
[375298823,1753619508039,-469.7,0.00024657,2]
[375298824,1753619508048,-537.44,0.00024657,2]
[375298825,1753619508058,-460.0,0.00024657,2]
[375298826,1753619508067,-509.47,0.00024657,2]
[375298827,1753619508077,-895.06,0.00024657,2]
[375298828,1753619508086,-1961.5,0.00024657,2]
[375298829,1753619508096,-460.0,0.00024657,2]
[375298830,1753619508105,-2239.97,0.00024657,2]
[375298831,1753619508114,-494.25,0.00024657,2]
[375298832,1753619508124,-477.09,0.00024657,2]
[375298833,1753619508133,-603.71,0.00024657,2]
[375298834,1753619508142,-534.47,0.00024657,2]
[375298835,1753619508151,-752.16,0.00024657,2]
[375298836,1753619508161,-262.04817577,0.00024657,2]
[375298837,1753619508171,-4106.11,0.00024657,2]
[375298838,1753619508180,-509.31,0.00024657,2]
[375298839,1753619508189,-1164.72,0.00024657,2]
[375298840,1753619508199,-460.0,0.00024657,2]
[375298841,1753619508209,-460.0,0.00024657,2]
[375298842,1753619508218,-911.34,0.00024657,2]
[375298843,1753619508228,-770.95,0.00024657,2]
[375298844,1753619508238,-802.67,0.00024657,2]
[375298845,1753619508248,-577.86,0.00024657,2]
[375298846,1753619508257,-620.79,0.00024657,2]
[375298847,1753619508267,-460.0,0.00024657,2]
[375298848,1753619508276,-712.03,0.00024657,2]
[375298849,1753619508286,-2515.03,0.00024657,2]
[375298850,1753619508296,-460.0,0.00024657,2]
[375298851,1753619508308,-3250.61,0.00024657,2]
[375298852,1753619508318,-479.16,0.00024657,2]
[375298853,1753619508328,-460.0,0.00024657,2]
[375298854,1753619508337,-813.85,0.00024657,2]
[375298855,1753619508347,-987.49,0.00024657,2]
[375298856,1753619508356,-517.5,0.00024657,2]
[375298857,1753619508366,-460.97,0.00024657,2]
[375298858,1753619508375,-460.0,0.00024657,2]
[375298859,1753619508387,-880.08,0.00024657,2]
[375298860,1753619508396,-1217.33,0.00024657,2]
[375298861,1753619508405,-1796.36,0.00024657,2]
[375298862,1753619508415,-473.6782629,0.00024657,2]
[375298863,1753619508425,-1416.23,0.00024657,2]
[375298864,1753619508435,-498.6,0.00024657,2]
[375298865,1753619508444,-485.82,0.00024657,2]
[375298866,1753619508453,-2199.13,0.00024657,2]
[375298867,1753619508463,-652.54,0.00024657,2]
[375298868,1753619508475,-704.98,0.00024657,2]
[375298869,1753619508484,-542.11,0.00024657,2]
[375298870,1753619508493,-841.61,0.00024657,2]
[375298871,1753619508502,-460.0,0.00024657,2]
[375298872,1753619508512,-856.84,0.00024657,2]
[375298873,1753619508522,-460.0,0.00024657,2]
[375298874,1753619508531,-536.66,0.00024657,2]
[375298875,1753619508541,-2625.62,0.00024657,2]
[375298876,1753619508550,-642.17,0.00024657,2]
[375298877,1753619508559,-460.0,0.00024657,2]
[375298878,1753619508569,-708.56,0.00024657,2]
[375298879,1753619508579,-693.53,0.00024657,2]
[375298880,1753619508589,-2552.96,0.00024657,2]
[375298881,1753619508598,-614.5,0.00024657,2]
[375298882,1753619508608,-714.22,0.00024657,2]
[375298883,1753619508618,-438.80843845,0.00024657,2]
[375298884,1753619508627,-500.96,0.00024657,2]
[375298885,1753619508636,-774.82,0.00024657,2]
[375298886,1753619508646,-476.88,0.00024657,2]
[375298887,1753619508655,-460.0,0.00024657,2]
[375298888,1753619508665,-551.68,0.00024657,2]
[375298889,1753619508676,-2325.49,0.00024657,2]
[375298890,1753619508686,-1372.59,0.00024657,2]
[375298891,1753619508696,-870.88,0.00024657,2]
[375298892,1753619508705,-472.58,0.00024657,2]
[375298893,1753619508715,-815.6,0.00024657,2]
[375298894,1753619508725,-460.0,0.00024657,2]
[375298895,1753619508735,-250.0,0.00024659,2]
[375298896,1753619508744,-311.96483399,0.0002466,2]
[375298897,1753619508754,-1247.85933598,0.0002466,2]
[375298898,1753619508763,-2807.68350594,0.0002466,2]
[375298899,1753619508773,-4991.4373439,0.0002466,2]
[375298900,1753619508783,-7791.321729,0.0002466,2]
[375298901,1753619508793,-603.48989277,0.00024672,2]
[375298902,1753619508802,-227.27167015,0.00024684,2]
[375298903,1753619508811,-172.29839479,0.00024685,2]
[375298904,1753619508822,-600.0,0.00024723,2]
[375298905,1753619508831,-2284.11449037,0.00024728,11]
[375298906,1753619508841,-600.0,0.00024748,2]
[375298907,1753619508851,-2481.06965381,0.00024769,2]
[375298908,1753619508860,-154.445282,0.0002478,9]
[375298909,1753619508870,-2158.0,0.00024787,2]
[375298910,1753619508879,-172.29839479,0.00024795,2]
[375298911,1753619508889,-2587.49,0.000248,7]
[375298912,1753619508899,-2920.97801479,0.000248,2]
[375298913,1753619508908,-500.0,0.00024807,2]
[375298914,1753619508917,-668.0,0.00024808,2]
[375298915,1753619508927,-500.0,0.00024818,2]
[375298916,1753619508938,-500.0,0.00024839,2]
[375298917,1753619508948,-1109.8,0.00024845,7]
[375298918,1753619508957,-151.0,0.00024845,7]
[375298919,1753619509097,-151.0,0.00024845,7]
[375298920,1753619509108,-151.0,0.00024845,7]
[375298921,1753619509118,-151.0,0.00024845,7]
[375298922,1753619509128,-811.80078412,0.00024872,2]
[375298923,1753619509137,-151.0,0.000249,7]
[375298924,1753619509147,-190.384102,0.000249,7]
[375298925,1753619509156,-151.0,0.000249,7]
[375298926,1753619509166,-151.0,0.000249,7]
[375298927,1753619509175,-523932.992516,0.000249,2]
[375298928,1753619509185,-2284.11449037,0.000249,12]
[375298929,1753619509195,-834.410212,0.000249,7]
[375298930,1753619509204,-834.410212,0.000249,7]
[375298931,1753619509214,-429.9863832,0.00024904,2]
[375298932,1753619509226,-429.9863832,0.00024904,2]
[375298933,1753619509237,-429.9863832,0.00024904,2]
[375298934,1753619509247,-429.9863832,0.00024904,2]
[375298935,1753619509257,-429.9863832,0.00024904,2]
[375298936,1753619509266,-428.8286288,0.00024904,2]
[375298937,1753619509275,-2495.82,0.00024931,2]
[375298938,1753619509284,-1544.51,0.00024931,2]
[375298939,1753619509293,-506.11,0.00024931,2]
[375298940,1753619509303,-460.0,0.00024931,2]
[375298941,1753619509314,-472.41,0.00024931,2]
[375298942,1753619509324,-486.26,0.00024931,2]
[375298943,1753619509334,-535.76,0.00024931,2]
[375298944,1753619509343,-1844.66,0.00024931,2]
[375298945,1753619509353,-719.78,0.00024931,2]
[375298946,1753619509362,-269.46138922,0.00024931,2]
[375298947,1753619509372,-2003.47,0.00024931,2]
[375298948,1753619509382,-748.74,0.00024931,2]
[375298949,1753619509391,-835.18,0.00024931,2]
[375298950,1753619509400,-600.06,0.00024931,2]
[375298951,1753619509410,-1433.49,0.00024931,2]
[375298952,1753619509419,-460.0,0.00024931,2]
[375298953,1753619509429,-514.36,0.00024931,2]
[375298954,1753619509439,-933.19,0.00024931,2]
[375298955,1753619509449,-460.0,0.00024931,2]
[375298956,1753619509458,-556.03,0.00024931,2]
[375298957,1753619509468,-466.74365477,0.00024931,2]
[375298958,1753619509478,-469.7,0.00024931,2]
[375298959,1753619509487,-537.44,0.00024931,2]
[375298960,1753619509497,-313.86264947,0.00024931,2]
[375298961,1753619509506,-509.47,0.00024931,2]
[375298962,1753619509515,-895.06,0.00024931,2]
[375298963,1753619509525,-1961.5,0.00024931,2]
[375298964,1753619509534,-460.0,0.00024931,2]
[375298965,1753619509544,-2239.97,0.00024931,2]
[375298966,1753619509553,-494.25,0.00024931,2]
[375298967,1753619509563,-477.09,0.00024931,2]
[375298968,1753619509572,-603.71,0.00024931,2]
[375298969,1753619509582,-534.47,0.00024931,2]
[375298970,1753619509591,-752.16,0.00024931,2]
[375298971,1753619509601,-4106.11,0.00024931,2]
[375298972,1753619509611,-509.31,0.00024931,2]
[375298973,1753619509620,-1164.72,0.00024931,2]
[375298974,1753619509630,-151.0,0.00024931,7]
[375298975,1753619509639,-249.19275384,0.00024931,2]
[375298976,1753619509648,-460.0,0.00024931,2]
[375298977,1753619509658,-911.34,0.00024931,2]
[375298978,1753619509668,-770.95,0.00024931,2]
[375298979,1753619509678,-802.67,0.00024931,2]
[375298980,1753619509688,-577.86,0.00024931,2]
[375298981,1753619509697,-620.79,0.00024931,2]
[375298982,1753619509707,-460.0,0.00024931,2]
[375298983,1753619509717,-712.03,0.00024931,2]
[375298984,1753619509727,-151.0,0.00024931,7]
[375298985,1753619509737,-2515.03,0.00024931,2]
[375298986,1753619509747,-413.00346532,0.00024931,2]
[375298987,1753619509756,-3250.61,0.00024931,2]
[375298988,1753619509765,-479.16,0.00024931,2]
[375298989,1753619509774,-151.0,0.00024931,7]
[375298990,1753619509784,-151.0,0.00024931,7]
[375298991,1753619509793,-813.85,0.00024931,2]
[375298992,1753619509802,-987.49,0.00024931,2]
[375298993,1753619509812,-517.5,0.00024931,2]
[375298994,1753619509821,-460.97,0.00024931,2]
[375298995,1753619509830,-880.08,0.00024931,2]
[375298996,1753619509840,-1217.33,0.00024931,2]
[375298997,1753619509849,-1796.36,0.00024931,2]
[375298998,1753619509858,-1416.23,0.00024931,2]
[375298999,1753619509868,-498.6,0.00024931,2]
[375299000,1753619509877,-485.82,0.00024931,2]
[375299001,1753619509887,-2199.13,0.00024931,2]
[375299002,1753619509897,-652.54,0.00024931,2]
[375299003,1753619509906,-704.98,0.00024931,2]
[375299004,1753619509915,-841.61,0.00024931,2]
[375299005,1753619509925,-542.11,0.00024931,2]
[375299006,1753619509934,-460.0,0.00024931,2]
[375299007,1753619509943,-856.84,0.00024931,2]
[375299008,1753619509953,-460.0,0.00024931,2]
[375299009,1753619509962,-536.66,0.00024931,2]
[375299010,1753619509971,-2625.62,0.00024931,2]
[375299011,1753619509980,-642.17,0.00024931,2]
[375299012,1753619509989,-460.0,0.00024931,2]
[375299013,1753619509998,-708.56,0.00024931,2]
[375299014,1753619510008,-693.53,0.00024931,2]
[375299015,1753619510018,-2552.96,0.00024931,2]
[375299016,1753619510028,-614.5,0.00024931,2]
[375299017,1753619510037,-714.22,0.00024931,2]
[375299018,1753619510046,-500.96,0.00024931,2]
[375299019,1753619510056,-774.82,0.00024931,2]
[375299020,1753619510066,-476.88,0.00024931,2]
[375299021,1753619510075,-460.0,0.00024931,2]
[375299022,1753619510085,-551.68,0.00024931,2]
[375299023,1753619510095,-1372.59,0.00024931,2]
[375299024,1753619510104,-2325.49,0.00024931,2]
[375299025,1753619510113,-870.88,0.00024931,2]
[375299026,1753619510123,-472.58,0.00024931,2]
[375299027,1753619510132,-815.6,0.00024931,2]
[375299028,1753619510142,-172.29839479,0.00024932,2]
[375299029,1753619510152,-631.12,0.00024958,2]
[375299030,1753619510161,-156.0,0.00024959,15]
[375299031,1753619510171,-600.0,0.00024993,2]
[375299032,1753619510180,-500.0,0.00024997,2]
[375299033,1753619510190,-153.0,0.00025,7]
[375299034,1753619510199,-26426.3,0.00025,2]
[375299035,1753619510209,-231.30466539,0.00025,10]
[375299036,1753619510219,-216.01841554,0.00025,10]
[375299037,1753619510228,-840.75038169,0.00025,10]
[375299038,1753619510238,-81370.60306196,0.00025,2]
[375299039,1753619510248,-600.0,0.00025,2]
[375299040,1753619510257,-526.50274803,0.00025,10]
[375299041,1753619510267,-969.0,0.00025036,2]
[375299042,1753619510276,-407.0,0.00025036,2]
[375299043,1753619510286,-500.0,0.00025039,2]
[375299044,1753619510296,-162.0507939,0.00025041,2]
[375299045,1753619510309,-965.0,0.000251,2]
[375299046,1753619510321,-2481.06965381,0.00025101,2]
[375299047,1753619510331,-332.605411,0.00025185,16]
[375299048,1753619510341,-2495.82,0.00025205,2]
[375299049,1753619510351,-1544.51,0.00025205,2]
[375299050,1753619510360,-506.11,0.00025205,2]
[375299051,1753619510370,-460.0,0.00025205,2]
[375299052,1753619510379,-486.26,0.00025205,2]
[375299053,1753619510391,-535.76,0.00025205,2]
[375299054,1753619510400,-719.78,0.00025205,2]
[375299055,1753619510409,-2003.47,0.00025205,2]
[375299056,1753619510418,-748.74,0.00025205,2]
[375299057,1753619510427,-835.18,0.00025205,2]
[375299058,1753619510436,-1433.49,0.00025205,2]
[375299059,1753619510446,-514.36,0.00025205,2]
[375299060,1753619510456,-933.19,0.00025205,2]
[375299061,1753619510466,-460.0,0.00025205,2]
[375299062,1753619510475,-556.03,0.00025205,2]
[375299063,1753619510484,-469.7,0.00025205,2]
[375299064,1753619510494,-537.44,0.00025205,2]
[375299065,1753619510503,-509.47,0.00025205,2]
[375299066,1753619510513,-895.06,0.00025205,2]
[375299067,1753619510523,-1961.5,0.00025205,2]
[375299068,1753619510532,-460.0,0.00025205,2]
[375299069,1753619510542,-2239.97,0.00025205,2]
[375299070,1753619510551,-494.25,0.00025205,2]
[375299071,1753619510561,-477.09,0.00025205,2]
[375299072,1753619510570,-1683.47,0.00025205,4]
[375299073,1753619510579,-603.71,0.00025205,2]
[375299074,1753619510588,-534.47,0.00025205,2]
[375299075,1753619510597,-752.16,0.00025205,2]
[375299076,1753619510607,-4106.11,0.00025205,2]
[375299077,1753619510617,-509.31,0.00025205,2]
[375299078,1753619510627,-1164.72,0.00025205,2]
[375299079,1753619510637,-911.34,0.00025205,2]
[375299080,1753619510646,-770.95,0.00025205,2]
[375299081,1753619510656,-802.67,0.00025205,2]
[375299082,1753619510665,-577.86,0.00025205,2]
[375299083,1753619510674,-620.79,0.00025205,2]
[375299084,1753619510683,-401.09418904,0.00025205,2]
[375299085,1753619510693,-712.03,0.00025205,2]
[375299086,1753619510702,-2515.03,0.00025205,2]
[375299087,1753619510712,-3250.61,0.00025205,2]
[375299088,1753619510721,-479.16,0.00025205,2]
[375299089,1753619510731,-813.85,0.00025205,2]
[375299090,1753619510740,-987.49,0.00025205,2]
[375299091,1753619510750,-517.5,0.00025205,2]
[375299092,1753619510760,-460.97,0.00025205,2]
[375299093,1753619510770,-880.08,0.00025205,2]
[375299094,1753619510780,-1217.33,0.00025205,2]
[375299095,1753619510790,-1796.36,0.00025205,2]
[375299096,1753619510800,-1416.23,0.00025205,2]
[375299097,1753619510809,-498.6,0.00025205,2]
[375299098,1753619510819,-485.82,0.00025205,2]
[375299099,1753619510829,-2199.13,0.00025205,2]
[375299100,1753619510839,-652.54,0.00025205,2]
[375299101,1753619510849,-704.98,0.00025205,2]
[375299102,1753619510859,-542.11,0.00025205,2]
[375299103,1753619510869,-841.61,0.00025205,2]
[375299104,1753619510880,-460.0,0.00025205,2]
[375299105,1753619510892,-856.84,0.00025205,2]
[375299106,1753619510903,-471.68642377,0.00025205,2]
[375299107,1753619510912,-536.66,0.00025205,2]
[375299108,1753619510922,-2625.62,0.00025205,2]
[375299109,1753619510932,-642.17,0.00025205,2]
[375299110,1753619510941,-460.0,0.00025205,2]
[375299111,1753619510951,-119.59612593,0.00025205,2]
[375299112,1753619510976,-597.67,0.00019178,2]
[375299113,1753619510986,-460.0,0.00022191,2]
[375299114,1753619510995,-588.96387407,0.00025205,2]
[375299115,1753619511005,-693.53,0.00025205,2]
[375299116,1753619511014,-2552.96,0.00025205,2]
[375299117,1753619511023,-451.14269936,0.00025205,2]
[375299118,1753619512050,-500.0,0.0001867,2]
[375299119,1753619512060,-460.0,0.00019178,2]
[375299120,1753619512069,-160.36948606,0.00019178,2]
[375299121,1753619512086,-3.93980439,0.00019178,2]
[375299122,1753619512095,-460.0,0.00019178,2]
[375299123,1753619512105,-460.0,0.00019452,2]
[375299124,1753619512114,-597.67,0.00019452,2]
[375299125,1753619512125,-460.0,0.00019452,2]
[375299126,1753619512134,-460.0,0.00019452,2]
[375299127,1753619512143,-460.0,0.00019726,2]
[375299128,1753619512152,-597.67,0.00019726,2]
[375299129,1753619512162,-493.3859736,0.00019726,2]